[Event "EWCCC Online Preliminary-C 2020"]
[Site "Online"]
[Date "2020.12.19"]
[Round "5.4"]
[White "Gretarsdottir, Lilja"]
[Black "Kurapova, Olga"]
[Result "1-0"]
[ECO "C50"]
[WhiteElo "1984"]
[BlackElo "1927"]
[Annotator "NA"]
[PlyCount "75"]
[EventDate "2020.12.19"]
[EventType "team-tourn"]
[EventCountry "NET"]
[SourceTitle "playchess.com"]
[Source "ChessBase"]
[SourceQuality "1"]
[TimeControl "900+5"]

1. e4 {[%emt 0:00:02]} e5 {[%emt 0:00:04]} 2. Nf3 {[%emt 0:00:03]} Nc6 {[%emt 0:00:03]} 3. Bc4 {[%emt 0:00:02]} Bc5 {[%emt 0:00:03]} 4. d3 {[%emt 0:00:06]} Nf6 {[%emt 0:00:08]} 5. Bg5 {[%emt 0:00:07]} h6 {[%emt 0:00:08]} 6. Bh4 {[%emt 0:00:03]} g5 {[%emt 0:00:05]} 7. Bg3 {[%emt 0:00:04]} d6 {[%emt 0:00:05]} 8. h3 {[%emt 0:00:06]} Qe7 {[%emt 0:00:06]} 9. O-O {[%emt 0:00:28]} Be6 {[%emt 0:00:05]} 10. Nbd2 {[%emt 0:01:07]} O-O-O {[%emt 0:00:39]} 11. c3 {[%emt 0:00:21]} a6 {[%emt 0:00:06]} 12. b4 {[%emt 0:00:19]} Ba7 {[%emt 0:00:07]} 13. a4 {[%emt 0:00:41]} Bxc4 {[%emt 0:01:29]} 14. Nxc4 {[%emt 0:00:15]} g4 {[%emt 0:00:14]} 15. hxg4 {[%emt 0:00:10]} Nxg4 {[%emt 0:00:03]} 16. b5 {[%emt 0:00:09]} Nb8 {[%emt 0:00:04]} 17. Qb3 {[%emt 0:03:00]} h5 {[%emt 0:00:34]} 18. Bh4 {[%emt 0:01:50]} f6 {[%emt 0:00:14]} 19. Rab1 {[%emt 0:00:12]} Bb6 {[%emt 0:01:02]} 20. a5 {[%emt 0:01:52]} Bc5 {[%emt 0:05:22]} 21. bxa6 {[%emt 0:01:43]} Kd7 {[%emt 0:04:08]} 22. axb7 {[%emt 0:01:43]} Rhg8 {[%emt 0:00:27]} 23. d4 {[%emt 0:00:56]} exd4 {[%emt 0:00:23]} 24. cxd4 {[%emt 0:00:02]} Ba7 {[%emt 0:00:29]} 25. Qb5+ {[%emt 0:00:20]} Nc6 {[%emt 0:00:04]} 26. d5 {[%emt 0:00:16]} Qg7 {[%emt 0:00:46]} 27. Qxc6+ {[%emt 0:00:04]} Ke7 {[%emt 0:00:02]} 28. g3 {[%emt 0:00:55]} Bb8 {[%emt 0:00:05]} 29. a6 {[%emt 0:00:04]} Nh6 {[%emt 0:00:06]} 30. Ra1 {[%emt 0:00:04]} Ba7 {[%emt 0:00:06]} 31. Qxc7+ {[%emt 0:00:02]} Rd7 {[%emt 0:00:01]} 32. Qc6 {[%emt 0:00:12]} Qg4 {[%emt 0:00:04]} 33. Bxf6+ {[%emt 0:00:16]} Kxf6 {[%emt 0:00:04]} 34. Nh2 {[%emt 0:00:05]} Qh3 {[%emt 0:00:04]} 35. Nb6 {[%emt 0:00:09]} Rxg3+ {[%emt 0:00:12]} 36. fxg3+ {[%emt 0:00:04]} Ke5 {[%emt 0:00:08]} 37. Ra3 {[%emt 0:00:02]} Rg7 {[%emt 0:00:07]} 38. Rff3 {[%emt 0:00:04]} 1-0

[Event "EWCCC Online Preliminary-C 2020"]
[Site "Online"]
[Date "2020.12.19"]
[Round "5.4"]
[White "Heinatz, Maria"]
[Black "Johannsdottir, Johanna Bjorg"]
[Result "0-1"]
[ECO "B27"]
[WhiteElo "1941"]
[BlackElo "1935"]
[Annotator "NA"]
[PlyCount "122"]
[EventDate "2020.12.19"]
[EventType "team-tourn"]
[EventCountry "NET"]
[SourceTitle "playchess.com"]
[Source "ChessBase"]
[SourceQuality "1"]
[TimeControl "900+5"]

1. e4 {[%emt 0:00:00]} c5 {[%emt 0:00:05]} 2. Nf3 {[%emt 0:00:04]} g6 {[%emt 0:00:03]} 3. d4 {[%emt 0:00:05]} cxd4 {[%emt 0:00:02]} 4. Qxd4 {[%emt 0:00:02]} Nf6 {[%emt 0:00:01]} 5. Nc3 {[%emt 0:00:16]} Nc6 {[%emt 0:00:02]} 6. Qa4 {[%emt 0:00:06]} Bg7 {[%emt 0:01:05]} 7. e5 {[%emt 0:01:21]} Ng8 {[%emt 0:00:03]} 8. Bf4 {[%emt 0:00:06]} Nh6 {[%emt 0:00:07]} 9. Bd3 {[%emt 0:00:43]} O-O {[%emt 0:00:06]} 10. O-O-O {[%emt 0:00:16]} a6 {[%emt 0:00:09]} 11. h3 {[%emt 0:01:06]} Qb6 {[%emt 0:00:35]} 12. g4 {[%emt 0:02:24]} Qxf2 {[%emt 0:00:29]} 13. Rdf1 {[%emt 0:00:02]} Qc5 {[%emt 0:00:12]} 14. a3 {[%emt 0:00:54]} d6 {[%emt 0:00:57]} 15. Ne4 {[%emt 0:01:47]} Qb6 {[%emt 0:00:07]} 16. c3 {[%emt 0:00:51]} Nxe5 {[%emt 0:00:39]} 17. Nxe5 {[%emt 0:00:04]} dxe5 {[%emt 0:00:04]} 18. Bd2 {[%emt 0:00:10]} Be6 {[%emt 0:00:20]} 19. Ng5 {[%emt 0:00:45]} Bd5 {[%emt 0:01:02]} 20. Rh2 {[%emt 0:00:03]} f6 {[%emt 0:00:27]} 21. Ne4 {[%emt 0:00:05]} Nf7 {[%emt 0:00:12]} 22. h4 {[%emt 0:00:14]} Rad8 {[%emt 0:00:08]} 23. Qd1 {[%emt 0:00:48]} Bb3 {[%emt 0:01:42]} 24. Qe2 {[%emt 0:00:13]} Nd6 {[%emt 0:00:09]} 25. Be3 {[%emt 0:00:12]} Qc6 {[%emt 0:00:15]} 26. Nc5 {[%emt 0:00:08]} Bf7 {[%emt 0:00:28]} 27. h5 {[%emt 0:00:28]} e4 {[%emt 0:00:54]} 28. Bc2 {[%emt 0:00:08]} Bc4 {[%emt 0:00:11]} 29. Qf2 {[%emt 0:00:13]} Bxf1 {[%emt 0:00:07]} 30. Qxf1 {[%emt 0:00:01]} Nf7 {[%emt 0:00:56]} 31. hxg6 {[%emt 0:00:12]} hxg6 {[%emt 0:00:04]} 32. Qh3 {[%emt 0:00:10]} Rfe8 {[%emt 0:01:06]} 33. Bxe4 {[%emt 0:01:29]} Qd6 {[%emt 0:00:56]} 34. Qh7+ {[%emt 0:00:05]} Kf8 {[%emt 0:00:02]} 35. Rd2 {[%emt 0:00:15]} Qe5 {[%emt 0:01:11]} 36. Bd4 {[%emt 0:00:49]} Rxd4 {[%emt 0:01:29]} 37. cxd4 {[%emt 0:00:03]} Qd6 {[%emt 0:00:04]} 38. Bxg6 {[%emt 0:00:37]} Ng5 {[%emt 0:00:37]} 39. Qh1 {[%emt 0:00:11]} b6 {[%emt 0:00:10]} 40. Ne4 {[%emt 0:00:30]} Rc8+ {[%emt 0:00:06]} 41. Kb1 {[%emt 0:00:03]} Qf4 {[%emt 0:00:25]} 42. Nxg5 {[%emt 0:00:17]} Qxg5 {[%emt 0:00:06]} 43. Qg2 {[%emt 0:00:11]} Qxg6+ {[%emt 0:00:02]} 44. Ka1 {[%emt 0:00:08]} Rc1+ {[%emt 0:00:04]} 45. Ka2 {[%emt 0:00:02]} Qf7+ {[%emt 0:00:13]} 46. b3 {[%emt 0:00:03]} Qg6 {[%emt 0:00:02]} 47. Qa8+ {[%emt 0:00:06]} Qe8 {[%emt 0:00:07]} 48. Qxa6 {[%emt 0:00:02]} Qc6 {[%emt 0:00:08]} 49. Qa7 {[%emt 0:00:05]} Bh6 {[%emt 0:00:14]} 50. Re2 {[%emt 0:00:04]} Rc2+ {[%emt 0:00:13]} 51. Rxc2 {[%emt 0:00:04]} Qxc2+ {[%emt 0:00:02]} 52. Ka1 {[%emt 0:00:01]} Qc1+ {[%emt 0:00:03]} 53. Ka2 {[%emt 0:00:01]} Qd2+ {[%emt 0:00:01]} 54. Ka1 {[%emt 0:00:03]} Qxd4+ {[%emt 0:00:02]} 55. Ka2 {[%emt 0:00:02]} Bc1 {[%emt 0:00:06]} 56. Qb8+ {[%emt 0:00:07]} Kg7 {[%emt 0:00:03]} 57. Qh2 {[%emt 0:00:03]} Qxg4 {[%emt 0:00:07]} 58. Qc2 {[%emt 0:00:04]} Qg5 {[%emt 0:00:05]} 59. Kb1 {[%emt 0:00:03]} Bxa3 {[%emt 0:00:03]} 60. Ka2 {[%emt 0:00:01]} Bb4 {[%emt 0:00:04]} 61. Qf2 {[%emt 0:00:07]} Qd2+ {[%emt 0:00:03]} 0-1

[Event "EWCCC Online Preliminary-C 2020"]
[Site "Online"]
[Date "2020.12.19"]
[Round "6.1"]
[White "Thorsteinsdottir, Hallgerdur"]
[Black "Hrenic, Misa"]
[Result "1-0"]
[ECO "C54"]
[WhiteElo "2009"]
[BlackElo "2020"]
[Annotator "ChessBase"]
[PlyCount "111"]
[EventDate "2020.12.19"]
[EventType "team-tourn"]
[EventCountry "NET"]
[SourceTitle "playchess.com"]
[Source "ChessBase"]
[SourceQuality "1"]
[TimeControl "900+5"]

1. e4 {[%emt 0:00:00]} e5 {[%emt 0:00:04]} 2. Nf3 {[%emt 0:00:05]} Nc6 {[%emt 0:00:01]} 3. Bc4 {[%emt 0:00:03]} Bc5 {[%emt 0:00:03]} 4. c3 {[%emt 0:00:02]} Nf6 {[%emt 0:00:21]} 5. d3 {[%emt 0:00:03]} d6 {[%emt 0:00:18]} 6. Nbd2 {[%emt 0:00:05]} a6 {[%emt 0:00:05]} 7. Bb3 {[%emt 0:00:05]} Ba7 {[%emt 0:00:03]} 8. Nf1 {[%emt 0:00:03]} h6 {[%emt 0:00:46]} 9. Ng3 {[%emt 0:00:04]} O-O {[%emt 0:01:07]} 10. O-O {[%emt 0:00:03]} Re8 {[%emt 0:00:32]} 11. h3 {[%emt 0:00:24]} Be6 {[%emt 0:00:03]} 12. Re1 {[%emt 0:00:21]} d5 {[%emt 0:00:12]} 13. Nh4 {[%emt 0:02:13]} dxe4 {[%emt 0:00:55]} 14. Nxe4 {[%emt 0:00:18]} Nxe4 {[%emt 0:02:14]} 15. Rxe4 {[%emt 0:00:11]} Bxb3 {[%emt 0:00:10]} 16. axb3 {[%emt 0:00:08]} Qf6 {[%emt 0:00:02]} 17. Nf3 {[%emt 0:00:49]} Rad8 {[%emt 0:00:09]} 18. Qe2 {[%emt 0:00:24]} Re6 {[%emt 0:02:31]} 19. Raa4 {[%emt 0:01:10]} Qe7 {[%emt 0:01:51]} 20. Nh4 {[%emt 0:01:07]} Qd7 {[%emt 0:00:50]} 21. Be3 {[%emt 0:03:43]} Qxd3 {[%emt 0:00:35]} 22. Bxa7 {[%emt 0:00:28]} Qxe2 {[%emt 0:00:52]} 23. Rxe2 {[%emt 0:00:04]} Nxa7 {[%emt 0:00:01]} 24. Nf5 {[%emt 0:00:10]} Kh7 {[%emt 0:00:40]} 25. Rg4 {[%emt 0:00:18]} g6 {[%emt 0:00:13]} 26. Ne3 {[%emt 0:00:14]} Nc6 {[%emt 0:00:04]} 27. Nc4 {[%emt 0:00:11]} f5 {[%emt 0:00:32]} 28. Rg3 {[%emt 0:00:10]} e4 {[%emt 0:01:01]} 29. f3 {[%emt 0:00:41]} Rde8 {[%emt 0:00:32]} 30. fxe4 {[%emt 0:00:09]} Rxe4 {[%emt 0:00:05]} 31. Rxe4 {[%emt 0:00:06]} Rxe4 {[%emt 0:00:14]} 32. Rd3 {[%emt 0:00:05]} Re7 {[%emt 0:00:04]} 33. Kf2 {[%emt 0:00:08]} Kg7 {[%emt 0:00:02]} 34. Ne3 {[%emt 0:00:14]} Ne5 {[%emt 0:00:23]} 35. Rd5 {[%emt 0:00:15]} c6 {[%emt 0:00:04]} 36. Rd8 {[%emt 0:00:06]} Rd7 {[%emt 0:00:06]} 37. Re8 {[%emt 0:00:58]} Nd3+ {[%emt 0:00:03]} 38. Kf3 {[%emt 0:00:09]} Nxb2 {[%emt 0:00:04]} 39. Kf4 {[%emt 0:00:15]} Nd3+ {[%emt 0:00:03]} 40. Kf3 {[%emt 0:00:05]} Nc5 {[%emt 0:00:13]} 41. b4 {[%emt 0:00:08]} Ne4 {[%emt 0:00:04]} 42. c4 {[%emt 0:00:07]} Nd6 {[%emt 0:00:02]} 43. Rb8 {[%emt 0:00:15]} Ne4 {[%emt 0:00:04]} 44. g4 {[%emt 0:00:08]} Ng5+ {[%emt 0:00:05]} 45. Kf4 {[%emt 0:00:09]} Nxh3+ {[%emt 0:00:09]} 46. Kg3 {[%emt 0:00:05]} Ng5 {[%emt 0:00:03]} 47. gxf5 {[%emt 0:00:02]} Ne4+ {[%emt 0:00:10]} 48. Kf4 {[%emt 0:00:06]} Nf6 {[%emt 0:00:06]} 49. fxg6 {[%emt 0:00:06]} Kxg6 {[%emt 0:00:02]} 50. Nf5 {[%emt 0:00:23]} h5 {[%emt 0:00:08]} 51. Rh8 {[%emt 0:00:09]} Rh7 {[%emt 0:00:04]} 52. Nh4+ {[%emt 0:00:15]} Kf7 {[%emt 0:00:08]} 53. Rb8 {[%emt 0:00:04]} Ke6 {[%emt 0:00:02]} 54. Nf3 {[%emt 0:00:04]} Kd7 {[%emt 0:00:07]} 55. Rxb7+ {[%emt 0:00:03]} Ke6 {[%emt 0:00:02]} 56. Ng5+ {[%emt 0:00:04]} 1-0

[Event "EWCCC Online Preliminary-C 2020"]
[Site "Online"]
[Date "2020.12.19"]
[Round "6.1"]
[White "Gretarsdottir, Lilja"]
[Black "Drevensek, Doroteja"]
[Result "1-0"]
[ECO "C41"]
[WhiteElo "1984"]
[BlackElo "1385"]
[Annotator "NA"]
[PlyCount "103"]
[EventDate "2020.12.19"]
[EventType "team-tourn"]
[EventCountry "NET"]
[SourceTitle "playchess.com"]
[Source "ChessBase"]
[SourceQuality "1"]
[TimeControl "900+5"]

1. e4 {[%emt 0:00:02]} d6 {[%emt 0:00:02]} 2. d4 {[%emt 0:00:04]} Nf6 {[%emt 0:00:02]} 3. Nc3 {[%emt 0:00:04]} Nbd7 {[%emt 0:00:04]} 4. Nf3 {[%emt 0:00:07]} e5 {[%emt 0:00:02]} 5. Bc4 {[%emt 0:00:38]} Be7 {[%emt 0:00:05]} 6. O-O {[%emt 0:00:03]} O-O {[%emt 0:00:02]} 7. a3 {[%emt 0:00:28]} c6 {[%emt 0:00:07]} 8. Ba2 {[%emt 0:01:00]} b5 {[%emt 0:00:42]} 9. Re1 {[%emt 0:00:09]} Qc7 {[%emt 0:00:09]} 10. h3 {[%emt 0:00:17]} a6 {[%emt 0:00:26]} 11. Bg5 {[%emt 0:01:36]} h6 {[%emt 0:00:20]} 12. Bh4 {[%emt 0:00:03]} Bb7 {[%emt 0:00:13]} 13. Qd2 {[%emt 0:01:05]} Rfe8 {[%emt 0:01:33]} 14. Rad1 {[%emt 0:00:19]} c5 {[%emt 0:02:41]} 15. dxe5 {[%emt 0:01:22]} Nxe5 {[%emt 0:00:23]} 16. Nxe5 {[%emt 0:00:09]} dxe5 {[%emt 0:00:12]} 17. Bg3 {[%emt 0:00:23]} Rad8 {[%emt 0:00:30]} 18. Nd5 {[%emt 0:04:06]} Nxd5 {[%emt 0:00:40]} 19. Bxd5 {[%emt 0:00:04]} Bg5 {[%emt 0:01:07]} 20. Qe2 {[%emt 0:00:18]} Bf6 {[%emt 0:00:42]} 21. c4 {[%emt 0:00:19]} Qb6 {[%emt 0:00:45]} 22. Qh5 {[%emt 0:00:58]} Bxd5 {[%emt 0:00:10]} 23. cxd5 {[%emt 0:00:13]} c4 {[%emt 0:00:35]} 24. Re2 {[%emt 0:00:04]} Qd6 {[%emt 0:00:33]} 25. Rc2 {[%emt 0:00:22]} Rc8 {[%emt 0:00:24]} 26. Qg4 {[%emt 0:00:09]} Rc5 {[%emt 0:01:50]} 27. Kh1 {[%emt 0:00:05]} Rec8 {[%emt 0:00:13]} 28. f4 {[%emt 0:00:39]} a5 {[%emt 0:00:28]} 29. Qf5 {[%emt 0:00:43]} g6 {[%emt 0:00:27]} 30. fxe5 {[%emt 0:00:36]} gxf5 {[%emt 0:00:39]} 31. exd6 {[%emt 0:00:01]} Rd8 {[%emt 0:00:47]} 32. e5 {[%emt 0:00:07]} Bg7 {[%emt 0:00:11]} 33. Bf2 {[%emt 0:00:10]} Rcc8 {[%emt 0:00:08]} 34. Bh4 {[%emt 0:00:35]} Rd7 {[%emt 0:00:25]} 35. Bg3 {[%emt 0:00:02]} b4 {[%emt 0:00:07]} 36. axb4 {[%emt 0:00:05]} axb4 {[%emt 0:00:02]} 37. e6 {[%emt 0:00:01]} fxe6 {[%emt 0:00:06]} 38. dxe6 {[%emt 0:00:02]} Ra7 {[%emt 0:00:10]} 39. d7 {[%emt 0:00:02]} Rca8 {[%emt 0:00:05]} 40. d8=Q+ {[%emt 0:00:04]} Rxd8 {[%emt 0:00:02]} 41. Rxd8+ {[%emt 0:00:02]} Kh7 {[%emt 0:00:02]} 42. Rxc4 {[%emt 0:00:03]} Bxb2 {[%emt 0:00:10]} 43. Rxb4 {[%emt 0:00:02]} Bg7 {[%emt 0:00:07]} 44. Rd7 {[%emt 0:00:02]} Ra1+ {[%emt 0:00:04]} 45. Kh2 {[%emt 0:00:02]} Ra8 {[%emt 0:00:05]} 46. Rbb7 {[%emt 0:00:02]} Re8 {[%emt 0:00:07]} 47. Rxg7+ {[%emt 0:00:03]} Kh8 {[%emt 0:00:02]} 48. Be5 {[%emt 0:00:07]} Rxe6 {[%emt 0:00:07]} 49. Rge7+ {[%emt 0:00:03]} Kg8 {[%emt 0:00:02]} 50. Rxe6 {[%emt 0:00:01]} f4 {[%emt 0:00:04]} 51. Ra6 {[%emt 0:00:02]} f3 {[%emt 0:00:05]} 52. Ra8# {[%emt 0:00:02]} 1-0

[Event "EWCCC Online Preliminary-C 2020"]
[Site "Online"]
[Date "2020.12.19"]
[Round "6.1"]
[White "Mihevc-Mohr, Narcisa"]
[Black "Johannsdottir, Johanna Bjorg"]
[Result "0-1"]
[ECO "B35"]
[WhiteElo "1974"]
[BlackElo "1935"]
[Annotator "NA"]
[PlyCount "68"]
[EventDate "2020.12.19"]
[EventType "team-tourn"]
[EventCountry "NET"]
[SourceTitle "playchess.com"]
[Source "ChessBase"]
[SourceQuality "1"]
[TimeControl "900+5"]

1. e4 {[%emt 0:00:00]} c5 {[%emt 0:00:04]} 2. Nf3 {[%emt 0:00:04]} g6 {[%emt 0:00:02]} 3. d4 {[%emt 0:00:03]} cxd4 {[%emt 0:00:02]} 4. Nxd4 {[%emt 0:00:03]} Nc6 {[%emt 0:00:02]} 5. Nc3 {[%emt 0:00:06]} Bg7 {[%emt 0:00:01]} 6. Be3 {[%emt 0:00:10]} Nf6 {[%emt 0:00:02]} 7. Bc4 {[%emt 0:00:32]} O-O {[%emt 0:00:03]} 8. Bb3 {[%emt 0:00:06]} Ng4 {[%emt 0:00:05]} 9. Qxg4 {[%emt 0:00:05]} Nxd4 {[%emt 0:00:03]} 10. Qh4 {[%emt 0:01:31]} Ne6 {[%emt 0:00:50]} 11. Nd5 {[%emt 0:00:30]} Bxb2 {[%emt 0:01:40]} 12. Rd1 {[%emt 0:01:46]} Re8 {[%emt 0:01:11]} 13. f4 {[%emt 0:01:08]} Qa5+ {[%emt 0:01:28]} 14. Bd2 {[%emt 0:00:38]} Qc5 {[%emt 0:00:15]} 15. Bb4 {[%emt 0:00:20]} Qc6 {[%emt 0:00:43]} 16. Bxe7 {[%emt 0:00:24]} Bc3+ {[%emt 0:00:35]} 17. Nxc3 {[%emt 0:01:34]} Qxc3+ {[%emt 0:00:05]} 18. Rd2 {[%emt 0:00:07]} Qe3+ {[%emt 0:00:39]} 19. Re2 {[%emt 0:00:15]} Qc1+ {[%emt 0:00:14]} 20. Kf2 {[%emt 0:00:03]} Qxf4+ {[%emt 0:00:41]} 21. Kg1 {[%emt 0:01:27]} Nd4 {[%emt 0:03:33]} 22. Re1 {[%emt 0:01:40]} Qxh4 {[%emt 0:00:25]} 23. Bxh4 {[%emt 0:00:04]} d6 {[%emt 0:00:37]} 24. Bg3 {[%emt 0:01:17]} Bg4 {[%emt 0:00:55]} 25. h3 {[%emt 0:00:09]} Ne2+ {[%emt 0:00:17]} 26. Kf2 {[%emt 0:00:04]} Nxg3 {[%emt 0:00:12]} 27. Kxg3 {[%emt 0:00:02]} Be6 {[%emt 0:00:10]} 28. Kf4 {[%emt 0:00:31]} Rac8 {[%emt 0:00:08]} 29. Rd1 {[%emt 0:00:06]} Bxb3 {[%emt 0:00:16]} 30. cxb3 {[%emt 0:00:04]} Rc2 {[%emt 0:00:06]} 31. g4 {[%emt 0:00:38]} Re6 {[%emt 0:00:11]} 32. a4 {[%emt 0:00:50]} Rc3 {[%emt 0:00:25]} 33. Rb1 {[%emt 0:00:09]} h6 {[%emt 0:00:23]} 34. h4 {[%emt 0:00:03]} Rf6# {[%emt 0:00:03]} 0-1

[Event "EWCCC Online Preliminary-C 2020"]
[Site "Online"]
[Date "2020.12.19"]
[Round "7.1"]
[White "Heric, Meta"]
[Black "Jaufarally, Nadia"]
[Result "0-1"]
[ECO "B23"]
[WhiteElo "1318"]
[BlackElo "1905"]
[Annotator "NA"]
[PlyCount "34"]
[EventDate "2020.12.19"]
[EventType "team-tourn"]
[EventCountry "NET"]
[SourceTitle "playchess.com"]
[Source "ChessBase"]
[SourceQuality "1"]
[TimeControl "900+5"]

1. e4 {[%emt 0:00:01]} c5 {[%emt 0:00:02]} 2. Nc3 {[%emt 0:00:05]} g6 {[%emt 0:00:04]} 3. f4 {[%emt 0:00:08]} Bg7 {[%emt 0:00:02]} 4. Nf3 {[%emt 0:00:03]} Nc6 {[%emt 0:00:01]} 5. Bb5 {[%emt 0:00:06]} Nd4 {[%emt 0:00:03]} 6. O-O {[%emt 0:00:04]} a6 {[%emt 0:00:02]} 7. Be2 {[%emt 0:00:09]} d6 {[%emt 0:00:25]} 8. e5 {[%emt 0:00:49]} Nxf3+ {[%emt 0:01:22]} 9. Rxf3 {[%emt 0:00:11]} dxe5 {[%emt 0:00:08]} 10. fxe5 {[%emt 0:00:05]} Bxe5 {[%emt 0:00:54]} 11. Bc4 {[%emt 0:00:05]} Qd4+ {[%emt 0:00:15]} 12. Kh1 {[%emt 0:00:26]} Qxc4 {[%emt 0:00:07]} 13. d3 {[%emt 0:00:13]} Qh4 {[%emt 0:01:31]} 14. h3 {[%emt 0:00:30]} Bg4 {[%emt 0:00:29]} 15. Nd5 {[%emt 0:00:34]} Bxf3 {[%emt 0:00:13]} 16. Qxf3 {[%emt 0:00:05]} Qe1+ {[%emt 0:00:04]} 17. Qf1 {[%emt 0:00:11]} Qxf1# {[%emt 0:00:02]} 0-1